bitfinex/quotes_BTCUSD_20251124
["timestamp","ask_amount","ask_price","bid_price","bid_amount"]
[1763947275992,0.323,86867.0,86860.0,0.00999999]
[1763947276642,0.01151211,86865.0,86860.0,0.00999999]
[1763947276801,0.34028709,86867.0,86860.0,0.00999999]
[1763947277002,0.34028709,86867.0,86862.0,0.00924051]
[1763947277518,0.34028709,86867.0,86860.0,0.00999999]
[1763947277519,0.34028709,86867.0,86866.0,0.00924051]
[1763947277912,0.01728709,86867.0,86860.0,0.00999999]
[1763947278246,0.01728709,86867.0,86846.0,0.01562]
[1763947278247,0.01151198,86866.0,86846.0,0.01562]
[1763947278441,0.01151224,86864.0,86860.0,0.00999999]
[1763947278771,0.01151224,86864.0,86853.0,0.00924051]
[1763947278894,0.34020252,86867.0,86857.0,0.00924051]
[1763947279290,0.34020252,86867.0,86850.0,0.00999999]
[1763947279291,0.33451291,86859.0,86850.0,0.00999999]
[1763947279497,0.323,86859.0,86846.0,0.00935847]
[1763947279780,2.0,86858.0,86846.0,0.00935847]
[1763947279941,1.82426021,86858.0,86846.0,0.00935847]
[1763947280143,0.33451291,86859.0,86846.0,0.00935847]
[1763947280144,0.323,86856.0,86846.0,0.00935847]
[1763947280370,0.323,86859.0,86850.0,0.00999999]
[1763947280736,0.323,86859.0,86858.0,0.00924051]
[1763947281618,0.03111,86866.0,86855.0,0.00924051]
[1763947281823,0.323,86858.0,86855.0,0.00924051]
[1763947282071,0.323,86858.0,86857.0,0.00924051]
[1763947282900,0.00999999,86866.0,86857.0,0.00924051]
[1763947283059,0.34020252,86867.0,86865.0,0.00924051]
[1763947283482,0.16390326,86867.0,86865.0,0.00924051]
[1763947283686,0.16390326,86867.0,86860.0,0.00999999]
[1763947283687,0.16390326,86867.0,86866.0,0.0205]
[1763947283898,0.16390326,86867.0,86866.0,0.02974051]
[1763947284116,0.00602237,86870.0,86866.0,0.02974051]
[1763947284873,0.00602237,86870.0,86866.0,0.00924051]
[1763947285061,0.00602237,86870.0,86867.0,0.01562]
[1763947285416,0.02341055,86870.0,86867.0,0.01562]
[1763947286401,0.02341055,86870.0,86866.0,0.00924051]
[1763947289518,0.01738818,86870.0,86869.0,0.02974051]
[1763947289680,0.4917823,86890.0,86869.0,0.02974051]
[1763947289877,2.0,86878.0,86870.0,0.00512742]
[1763947290108,2.01771848,86878.0,86877.0,0.01]
[1763947290649,2.01771848,86878.0,86853.0,0.01562]
[1763947290650,0.323,86873.0,86858.0,0.01562]
[1763947290852,0.8147823,86870.0,86869.0,0.001]
[1763947290999,0.323,86870.0,86869.0,0.001]
[1763947291204,0.01151171,86868.0,86860.0,0.01]
[1763947291675,0.01017,86861.0,86860.0,0.01]
[1763947292434,0.01017,86861.0,86856.0,0.01]
[1763947292640,0.03023,86861.0,86856.0,0.01]
[1763947293429,0.02006,86857.0,86856.0,0.01]
[1763947293656,0.02006,86857.0,86850.0,0.01]
[1763947294042,0.323,86859.0,86850.0,0.00512742]
[1763947294417,0.323,86859.0,86845.0,0.01562]
[1763947294418,0.01562,86865.0,86860.0,0.00512742]
[1763947294731,0.01771848,86878.0,86870.0,0.00512742]
[1763947294935,0.01771848,86878.0,86875.0,0.01]
[1763947294936,2.0,86876.0,86875.0,0.01]
[1763947295154,0.323,86876.0,86875.0,0.01]
[1763947295355,0.323,86875.0,86870.0,0.00512742]
[1763947295572,0.323,86875.0,86874.0,0.01]
[1763947296318,0.323,86875.0,86874.0,0.03169]
[1763947296588,0.323,86876.0,86875.0,0.01]
[1763947297539,0.01801163,86878.0,86877.0,0.01]
[1763947298191,0.03807163,86878.0,86870.0,0.00512742]
[1763947298349,0.34306,86871.0,86870.0,0.00512742]
[1763947298567,0.34306,86871.0,86865.0,0.01]
[1763947299265,0.01151145,86870.0,86865.0,0.01]
[1763947299423,0.34306,86871.0,86865.0,0.01]
[1763947299618,0.323,86871.0,86865.0,0.01]
[1763947299801,0.323,86875.0,86870.0,0.00512742]
[1763947300140,2.0,86874.0,86870.0,0.00512742]
[1763947300353,0.02006,86871.0,86865.0,0.01]
[1763947301039,0.02006,86866.0,86858.0,0.01]
[1763947301206,0.01017,86859.0,86858.0,0.01]
[1763947303287,0.01017,86859.0,86858.0,0.011]
[1763947303534,0.03023,86859.0,86858.0,0.001]
[1763947303947,0.01017,86859.0,86858.0,0.011]
[1763947304147,0.0088,86867.0,86864.0,0.01]
[1763947305110,0.01869,86865.0,86864.0,0.01]
[1763947305313,0.01869,86865.0,86860.0,0.01512742]
[1763947305718,0.34169,86861.0,86860.0,0.00512742]
[1763947305923,0.03020264,86861.0,86840.0,0.04702]
[1763947306125,0.01151291,86859.0,86847.0,0.01]
[1763947306347,0.50329507,86860.0,86850.0,0.00512742]
[1763947306553,0.01151291,86859.0,86847.0,0.01]
[1763947306783,0.33503258,86860.0,86850.0,0.00512742]
[1763947307144,0.03462701,86859.0,86850.0,0.00512742]
[1763947307764,0.35762701,86859.0,86850.0,0.00512742]
[1763947308870,0.35762701,86859.0,86850.0,0.01512742]
[1763947309830,0.35762701,86859.0,86850.0,0.00512742]
[1763947309949,0.35762701,86859.0,86858.0,0.01]
[1763947310159,0.03462701,86859.0,86858.0,0.01]
[1763947312774,0.03462701,86859.0,86858.0,0.03134]
[1763947312984,0.03462701,86859.0,86858.0,0.06274]
[1763947313333,0.03462701,86859.0,86858.0,0.03134]
[1763947313542,0.03462701,86859.0,86858.0,0.01]
[1763947314178,0.03462701,86859.0,86856.0,0.01]
[1763947314389,0.03462701,86859.0,86857.0,0.01]
[1763947314593,0.03462701,86859.0,86858.0,0.001]
[1763947315033,0.03462701,86859.0,86858.0,0.02134]
[1763947315271,0.03462701,86859.0,86858.0,0.03134]
[1763947316197,0.19583387,86867.0,86865.0,0.01]
[1763947316823,0.02234,86866.0,86865.0,0.01]
[1763947317022,0.02234,86866.0,86865.0,0.03134]
[1763947317251,0.02234,86866.0,86865.0,0.01]
[1763947318673,0.02234,86866.0,86865.0,0.06274]
[1763947319568,0.323,86875.0,86874.0,0.01]
[1763947319769,0.01801163,86878.0,86877.0,0.01]
[1763947319972,0.01801163,86878.0,86877.0,0.03134]
[1763947320565,0.03151824,86878.0,86877.0,0.06274]
[1763947320719,0.01806435,86906.0,86890.0,0.00512742]
[1763947320902,0.01806435,86906.0,86903.0,0.01]
[1763947321103,0.323,86901.0,86900.0,0.01]
[1763947321302,0.01806435,86903.0,86900.0,0.01]
[1763947321526,0.00231519,86904.0,86901.0,0.0314]
[1763947321727,0.00231519,86904.0,86903.0,0.04739]
[1763947322157,0.00231519,86904.0,86903.0,0.07879]
[1763947323453,0.00231519,86904.0,86903.0,0.08879]
[1763947323801,0.00231519,86904.0,86903.0,0.08979]
[1763947324326,0.00231519,86904.0,86903.0,0.08879]
[1763947324529,0.00231519,86904.0,86903.0,0.08079]
[1763947326381,0.00231519,86904.0,86903.0,0.07979]
[1763947327255,0.00231519,86904.0,86903.0,0.04939]
[1763947327573,0.01409519,86904.0,86903.0,0.002]
[1763947327818,0.01409519,86904.0,86903.0,0.001]
[1763947328029,0.01409519,86904.0,86900.0,0.01]
[1763947328252,0.323,86899.0,86890.0,0.00512742]
[1763947328467,0.01150814,86895.0,86890.0,0.00512742]
[1763947328682,0.01150774,86898.0,86856.0,0.01702]
[1763947328683,0.01150946,86885.0,86880.0,0.00512742]
[1763947328896,0.11811186,86882.0,86880.0,0.00011824]
[1763947329129,0.01178,86881.0,86880.0,0.00011824]
[1763947329354,0.34656,86881.0,86880.0,0.00011824]
[1763947329785,2.34656,86881.0,86880.0,0.00011824]
[1763947330689,2.34756,86881.0,86880.0,0.00011824]
[1763947330901,2.34952241,86881.0,86880.0,0.00011824]
[1763947331107,2.37786638,86881.0,86880.0,0.00011824]
[1763947331343,2.37586638,86881.0,86880.0,0.00011824]
[1763947331540,2.37686638,86881.0,86880.0,0.00011824]
[1763947331838,2.37886638,86881.0,86880.0,0.00011824]
[1763947332039,2.37886638,86881.0,86817.0,0.00732]
[1763947332040,0.323,86866.0,86846.0,0.01]
[1763947332251,0.44111186,86861.0,86860.0,0.00512742]
[1763947332421,0.45289186,86861.0,86860.0,0.00512742]
[1763947333223,0.323,86860.0,86850.0,0.00512742]
[1763947333421,0.323,86860.0,86851.0,0.01]
[1763947334645,0.33451277,86860.0,86851.0,0.01]
[1763947334848,0.01178,86852.0,86846.0,0.01]
[1763947335028,0.01187067,86852.0,86846.0,0.01]
[1763947335241,9.067e-05,86852.0,86849.0,0.01]
[1763947335477,0.01702,86851.0,86849.0,0.01]
[1763947336029,0.01702,86851.0,86850.0,0.03247]
[1763947336231,0.01702,86851.0,86849.0,0.01]
[1763947336432,0.01702,86851.0,86842.0,0.01]
[1763947336848,0.01702,86851.0,86850.0,0.01]
[1763947337052,0.01702,86851.0,86850.0,0.03247]
[1763947338452,0.01702,86851.0,86850.0,0.06482]
[1763947339123,0.01702,86851.0,86850.0,0.01]
[1763947340146,0.01702,86851.0,86843.0,0.01]
[1763947340147,0.0115141,86850.0,86843.0,0.01]
[1763947340386,0.3345141,86850.0,86843.0,0.01]
[1763947340561,0.323,86850.0,86849.0,0.02247]
[1763947340902,0.323,86850.0,86849.0,0.01]
[1763947341077,0.323,86850.0,86835.0,0.01702]
[1763947341078,0.33478,86850.0,86841.0,0.01]
[1763947341622,0.11811186,86849.0,86841.0,0.01]
[1763947341992,0.324,86850.0,86840.0,0.00512742]
[1763947342144,0.324,86850.0,86835.0,0.01702]
[1763947342145,0.01151436,86848.0,86835.0,0.01702]
[1763947342351,0.0115145,86847.0,86844.0,0.01]
[1763947342901,0.0115145,86847.0,86829.0,0.01702]
[1763947342902,0.34629476,86845.0,86829.0,0.01702]
[1763947343045,0.02356,86839.0,86829.0,0.01702]
[1763947343251,0.34656,86839.0,86816.0,0.03235]
[1763947343484,0.34656,86839.0,86830.0,0.00512742]
[1763947343685,0.35834,86839.0,86830.0,0.00512742]
[1763947344382,0.03534,86839.0,86830.0,0.00512742]
[1763947344759,0.03634,86839.0,86830.0,0.00512742]
[1763947345158,0.26665126,86839.0,86830.0,0.00512742]
[1763947345356,2.26665126,86839.0,86830.0,0.00512742]
[1763947345573,2.35934,86839.0,86830.0,0.00512742]
[1763947345853,2.58965126,86839.0,86816.0,0.03235]
[1763947347025,2.58965126,86839.0,86808.0,0.03235]
[1763947347751,2.58965126,86839.0,86830.0,0.00512742]
[1763947347752,2.35934,86839.0,86830.0,0.00512742]
[1763947348159,2.34656,86839.0,86830.0,0.00512742]
[1763947348371,2.34756,86839.0,86830.0,0.00512742]
[1763947349480,2.34856,86839.0,86830.0,0.00512742]
[1763947349683,0.34756,86839.0,86830.0,0.00512742]
[1763947350693,0.36358,86839.0,86830.0,0.00512742]
[1763947350925,0.3518,86839.0,86830.0,0.00512742]
[1763947351241,0.3518,86839.0,86838.0,0.01025275]
[1763947351807,0.36045,86839.0,86838.0,0.01025275]
[1763947352029,0.3691,86839.0,86838.0,0.00025275]
[1763947352391,0.3518,86839.0,86838.0,0.00025275]
[1763947352564,0.36045,86839.0,86838.0,0.00025275]
[1763947352966,0.3518,86839.0,86838.0,0.00025275]
[1763947353304,0.3518,86839.0,86838.0,0.06507275]
[1763947353305,0.01702,86839.0,86838.0,0.06507275]
[1763947353463,0.47890707,86860.0,86838.0,0.06507275]
[1763947353464,0.00865,86861.0,86851.0,0.01]
[1763947353662,0.00865,86861.0,86851.0,0.04491]
[1763947353985,0.00865,86861.0,86851.0,0.07559]
[1763947353986,0.02431809,86852.0,86851.0,0.07559]
[1763947354191,9.067e-05,86852.0,86851.0,0.02481]
[1763947354412,9.067e-05,86852.0,86848.0,0.01]
[1763947354619,0.11811186,86851.0,86845.0,0.01481]
[1763947354835,0.11811186,86851.0,86842.0,0.01]
[1763947355033,0.11811186,86851.0,86840.0,0.00412742]
[1763947355034,0.323,86850.0,86840.0,0.00412742]
[1763947355248,0.323,86850.0,86847.0,0.01]
[1763947356088,0.01811795,86852.0,86851.0,0.01]
[1763947356292,9.067e-05,86852.0,86851.0,0.0301]
[1763947356650,9.067e-05,86852.0,86851.0,0.06078]
[1763947358034,9.067e-05,86852.0,86851.0,0.0301]
[1763947359060,9.067e-05,86852.0,86851.0,0.001]
[1763947359444,9.067e-05,86852.0,86851.0,0.002]
[1763947359857,9.067e-05,86852.0,86848.0,0.01]
[1763947360080,9.067e-05,86852.0,86814.0,0.10864726]
[1763947360081,0.11811186,86851.0,86846.0,0.01]
[1763947360311,0.323,86850.0,86840.0,0.01]
[1763947360525,0.81342117,86850.0,86840.0,0.01]
[1763947360744,0.02151405,86849.0,86840.0,0.01]
[1763947360953,0.80190707,86850.0,86841.0,0.01481]
[1763947361173,0.02151357,86849.0,86841.0,0.01481]
[1763947361380,0.323,86850.0,86849.0,0.01]
[1763947361578,0.34451783,86850.0,86849.0,0.01]
[1763947361791,0.35316783,86850.0,86848.0,0.001]
[1763947362021,0.03016783,86849.0,86840.0,0.00412742]
[1763947362222,0.02151783,86848.0,86846.0,0.001]
[1763947362431,9.067e-05,86852.0,86851.0,0.01]
[1763947362641,0.02160763,86852.0,86851.0,0.0301]
[1763947363282,9.067e-05,86852.0,86851.0,0.0301]
[1763947363500,9.067e-05,86852.0,86851.0,0.06049]
[1763947366200,9.067e-05,86852.0,86851.0,0.07049]
[1763947366397,9.067e-05,86852.0,86851.0,0.07249]
[1763947366639,9.067e-05,86852.0,86851.0,0.07149]
[1763947366892,6.7e-07,86852.0,86851.0,0.07149]
[1763947367120,0.03461263,86887.0,86886.0,0.01]
[1763947367349,0.02038513,86904.0,86903.0,0.01]
[1763947367515,0.02038513,86904.0,86890.0,0.00412742]
[1763947367516,0.11811186,86899.0,86898.0,0.01]
[1763947367672,0.11811186,86899.0,86896.0,0.01]
[1763947367673,0.02150221,86899.0,86896.0,0.01]
[1763947367881,0.02150221,86898.0,86896.0,0.01]
[1763947368195,0.03885075,86904.0,86896.0,0.02514]
[1763947368364,0.03885075,86904.0,86903.0,0.02046]
[1763947368570,0.020485,86904.0,86903.0,0.03046]
[1763947368774,0.020485,86904.0,86903.0,0.06085]
[1763947369173,0.5,86927.0,86921.0,0.01]
[1763947369407,2.0,86925.0,86921.0,0.009]
[1763947369608,2.0,86923.0,86921.0,0.01]
[1763947369925,2.34448976,86922.0,86921.0,0.01]
[1763947370645,2.34448976,86922.0,86910.0,0.00412742]
[1763947370646,0.01150496,86919.0,86910.0,0.00412742]
[1763947370801,0.323,86912.0,86910.0,0.00412742]
[1763947371006,0.323,86912.0,86908.0,0.01]
[1763947372029,0.323,86912.0,86906.0,0.01]
[1763947372879,0.01150615,86910.0,86906.0,0.01]
[1763947373003,0.01150602,86911.0,86906.0,0.01]
[1763947373215,0.323,86912.0,86906.0,0.01]
[1763947373418,0.01150602,86911.0,86906.0,0.01]
[1763947373619,0.01150602,86911.0,86887.0,0.03039]
[1763947373620,0.323,86907.0,86900.0,0.00412742]
[1763947373882,0.01150695,86904.0,86899.0,0.01]
[1763947374083,0.323,86905.0,86899.0,0.01]
[1763947374534,0.323,86905.0,86900.0,0.00412742]
[1763947374725,0.01150708,86903.0,86900.0,0.00412742]
[1763947374933,0.01150708,86903.0,86893.0,0.01]
[1763947375348,0.01150721,86902.0,86893.0,0.01]
[1763947375717,0.33450708,86903.0,86893.0,0.01]
[1763947376189,0.33450708,86903.0,86887.0,0.03039]
[1763947376190,0.323,86903.0,86887.0,0.03039]
[1763947376398,0.323,86907.0,86902.0,0.01]
[1763947376545,0.323,86905.0,86902.0,0.01]
[1763947377072,0.323,86905.0,86900.0,0.00412742]
[1763947377221,0.01150721,86902.0,86896.0,0.01]
[1763947377416,0.01150708,86903.0,86896.0,0.01]
[1763947377862,0.01150747,86900.0,86896.0,0.01]
[1763947378207,0.33450668,86906.0,86900.0,0.00412742]
[1763947378339,0.323,86904.0,86900.0,0.00412742]
[1763947378539,0.323,86904.0,86896.0,0.01]
[1763947378958,0.323,86904.0,86896.0,0.011]
[1763947379162,0.323,86904.0,86896.0,0.012]
[1763947379560,0.323,86898.0,86896.0,0.012]
[1763947380156,0.323,86898.0,86896.0,0.011]
[1763947380345,0.323,86898.0,86896.0,0.01]
[1763947380803,0.323,86896.0,86880.0,0.01514]
[1763947380959,0.00142,86894.0,86886.0,0.01009987]
[1763947381159,0.323,86895.0,86886.0,0.01009987]
[1763947381360,0.323,86895.0,86891.0,0.01]
[1763947381561,0.323,86895.0,86894.0,0.0456]
[1763947382002,0.03039,86918.0,86911.0,0.01]
[1763947382205,0.2472,86924.0,86911.0,0.07599]
[1763947382545,0.323,86923.0,86911.0,0.07599]
[1763947383202,0.01150496,86919.0,86909.0,0.01]
[1763947383404,0.323,86918.0,86909.0,0.01]
[1763947383908,0.00142,86910.0,86909.0,0.01]
[1763947384108,0.323,86903.0,86902.0,0.01]
[1763947384315,0.00142,86901.0,86895.0,0.01]
[1763947384517,0.01150761,86899.0,86895.0,0.01]
[1763947384691,0.01150747,86900.0,86895.0,0.01]
[1763947384874,0.00142,86896.0,86895.0,0.01]
[1763947385075,0.323,86899.0,86895.0,0.01]
[1763947385260,0.323,86899.0,86890.0,0.00412742]
[1763947385468,0.323,86899.0,86898.0,0.03119]
[1763947385902,0.323,86899.0,86898.0,0.06089]
[1763947386079,0.00025245,86912.0,86898.0,0.06089]
[1763947386262,0.01831396,86912.0,86911.0,0.01]
[1763947386469,0.01831396,86912.0,86911.0,0.03119]
[1763947388089,0.01831396,86912.0,86911.0,0.06089]
[1763947390643,0.01831396,86912.0,86911.0,0.01]
[1763947390843,0.01831396,86912.0,86899.0,0.01598]
[1763947391058,0.323,86909.0,86908.0,0.01]
[1763947391237,0.01150602,86911.0,86899.0,0.01598]
[1763947391432,0.323,86909.0,86907.0,0.01]
[1763947391624,0.01831396,86912.0,86907.0,0.01]
[1763947392184,0.00142,86908.0,86903.0,0.01]
[1763947392940,0.33592642,86908.0,86901.0,0.01]
[1763947393140,0.323,86901.0,86895.0,0.01]
[1763947393526,0.323,86899.0,86895.0,0.01]
[1763947393728,0.323,86899.0,86898.0,0.01]
[1763947394352,0.34450936,86899.0,86898.0,0.01]
[1763947395317,0.02292936,86899.0,86891.0,0.01]
[1763947395567,0.323,86893.0,86891.0,0.01]
[1763947395808,0.323,86893.0,86887.0,0.0297]
[1763947395997,0.323,86893.0,86892.0,0.03119]
[1763947396244,0.34452978,86893.0,86892.0,0.03119]
[1763947396444,0.34452978,86893.0,86892.0,0.06089]
[1763947396445,0.02154862,86893.0,86892.0,0.06089]
[1763947396634,2.33475834,86912.0,86911.0,0.01]
[1763947396836,2.323,86911.0,86910.0,0.01]
[1763947396999,2.3445493,86911.0,86910.0,0.01]
[1763947399726,2.36261077,86911.0,86910.0,0.01]
[1763947401634,0.323,86909.0,86906.0,0.01]
[1763947401829,0.0215493,86908.0,86906.0,0.01]
[1763947402046,0.0229693,86907.0,86900.0,0.00412742]
[1763947402362,0.0215493,86906.0,86900.0,0.00412742]
[1763947402774,0.0215493,86906.0,86905.0,0.03119]
[1763947402976,0.0215493,86910.0,86909.0,0.01]
[1763947403314,0.02156263,86910.0,86909.0,0.01]
[1763947404840,0.02156263,86910.0,86900.0,0.00412742]
[1763947404841,0.02298263,86910.0,86900.0,0.00412742]
[1763947405048,0.00142,86907.0,86901.0,0.01]
[1763947405260,0.02156263,86906.0,86901.0,0.01]
[1763947405468,0.32442,86902.0,86886.0,9.987e-05]
[1763947405686,0.02156263,86901.0,86895.0,0.01]
[1763947405926,0.02156263,86900.0,86895.0,0.01]
[1763947406103,0.02156263,86899.0,86895.0,0.01]
[1763947406349,0.02156263,86898.0,86895.0,0.01]
[1763947406569,0.02156263,86897.0,86895.0,0.01]
[1763947406774,0.02298263,86896.0,86893.0,0.01]
[1763947406981,0.02156263,86895.0,86893.0,0.01]
[1763947407192,0.02298263,86894.0,86893.0,0.01]
[1763947408193,0.02156263,86894.0,86893.0,0.01]
[1763947408497,0.323,86902.0,86901.0,0.01]
[1763947408710,0.34454904,86902.0,86901.0,0.01]
[1763947408938,0.34454904,86902.0,86901.0,0.03119]
[1763947408939,0.02154904,86902.0,86901.0,0.03119]
[1763947409342,0.02154904,86902.0,86901.0,0.01]
[1763947409836,0.323,86905.0,86901.0,0.01]
[1763947410034,0.0215517,86904.0,86903.0,0.01]
[1763947410454,0.323,86905.0,86904.0,0.01]
[1763947410657,0.323,86905.0,86904.0,0.03119]
[1763947411529,0.34456091,86905.0,86904.0,0.03119]
[1763947411736,0.34456091,86905.0,86904.0,0.01]
[1763947412536,0.34456091,86905.0,86904.0,0.03119]
[1763947412750,0.323,86905.0,86904.0,0.06089]
[1763947413440,0.01806086,86906.0,86905.0,0.01]
[1763947413788,0.03963528,86906.0,86901.0,0.01]
[1763947414017,0.02157442,86905.0,86900.0,0.01412742]
[1763947414211,0.02157442,86905.0,86904.0,0.01]
[1763947414412,0.01806086,86906.0,86905.0,0.01]
[1763947414631,0.03964106,86906.0,86902.0,0.01]
[1763947414848,0.01806086,86906.0,86902.0,0.01]
[1763947416306,0.02158354,86905.0,86902.0,0.01]
[1763947416535,0.03652492,86906.0,86902.0,0.01]
[1763947416775,0.01806086,86906.0,86902.0,0.01]
[1763947417236,0.03726097,86906.0,86902.0,0.01]
[1763947418606,0.323,86904.0,86902.0,0.01]
[1763947420872,0.323,86904.0,86900.0,0.00412742]
[1763947420873,0.323,86904.0,86900.0,0.01]
[1763947422009,0.03726097,86906.0,86900.0,0.01]
[1763947422190,0.03726097,86906.0,86905.0,0.01]
[1763947422597,0.24165388,86902.0,86892.0,0.01]
[1763947422806,0.323,86895.0,86890.0,0.01]
[1763947423836,0.323,86895.0,86871.0,0.01504]
[1763947423837,0.01150893,86889.0,86871.0,0.01504]
[1763947424191,0.323,86893.0,86880.0,0.00412742]
[1763947425445,0.01150853,86892.0,86880.0,0.00412742]
[1763947425647,0.55318403,86887.0,86867.0,0.01453]
[1763947425833,0.323,86887.0,86867.0,0.01453]
[1763947426052,0.323,86887.0,86869.0,0.01504]
[1763947426257,0.323,86887.0,86867.0,0.01453]
[1763947426462,2.323,86887.0,86862.0,0.00181039]
[1763947426876,2.34455179,86887.0,86862.0,0.00181039]
[1763947427088,2.323,86887.0,86862.0,0.00181039]
[1763947428598,2.34453231,86887.0,86862.0,0.00181039]
[1763947428807,2.55324763,86863.0,86862.0,0.00181039]
[1763947429013,2.78048243,86863.0,86862.0,0.00181039]
[1763947429457,2.92486374,86863.0,86862.0,0.00181039]
[1763947429621,0.323,86829.0,86828.0,0.01]
[1763947429826,0.323,86829.0,86828.0,0.00039445]
[1763947430276,0.323,86829.0,86828.0,0.01039445]
[1763947430694,0.01916155,86829.0,86828.0,0.01039445]
[1763947430907,0.01916155,86829.0,86828.0,0.00039445]
[1763947431162,0.02916,86835.0,86828.0,0.00039445]
[1763947431163,0.323,86832.0,86828.0,0.00039445]
[1763947431332,0.11811186,86831.0,86828.0,0.00039445]
[1763947431774,0.11811186,86831.0,86830.0,0.01]
[1763947432281,0.11811186,86831.0,86828.0,0.00039445]
[1763947432282,0.323,86830.0,86828.0,0.01039445]
[1763947434078,0.13683801,86831.0,86829.0,0.01888]
[1763947434079,0.01872615,86831.0,86829.0,0.01888]
[1763947434286,0.01151622,86834.0,86828.0,0.00039445]
[1763947434667,0.01151635,86833.0,86828.0,0.00039445]
[1763947434910,0.01151622,86834.0,86828.0,0.00039445]
[1763947435116,0.02983236,86834.0,86828.0,0.00039445]
[1763947435484,0.01151635,86833.0,86828.0,0.00039445]
[1763947435711,0.02983236,86834.0,86828.0,0.00039445]
[1763947435909,0.01831614,86834.0,86828.0,0.01543445]
[1763947436116,0.02916,86835.0,86833.0,0.01]
[1763947436318,0.02916,86835.0,86828.0,0.01543445]
[1763947436319,0.323,86832.0,86831.0,0.01]
[1763947436736,0.323,86832.0,86828.0,0.00039445]
[1763947436909,0.01151662,86831.0,86828.0,0.00039445]
[1763947437108,0.323,86830.0,86828.0,0.00039445]
[1763947437365,0.323,86832.0,86828.0,0.00039445]
[1763947438790,0.323,86832.0,86828.0,0.01543445]
[1763947438993,0.0476919,86835.0,86828.0,0.01543445]
[1763947438994,0.0476919,86835.0,86834.0,0.01]
[1763947439724,0.0476919,86835.0,86830.0,0.00412742]
[1763947440093,0.323,86830.0,86828.0,0.00039445]
[1763947440645,0.55333779,86829.0,86828.0,0.00039445]
[1763947440853,2.56837779,86829.0,86828.0,0.00146868]
[1763947441088,2.65423529,86829.0,86828.0,0.00146868]
[1763947441300,2.67555688,86829.0,86828.0,0.00146868]
[1763947442114,2.35936159,86829.0,86828.0,0.00146868]
[1763947442329,2.33804,86829.0,86828.0,0.00146868]
[1763947442535,0.33804,86829.0,86828.0,0.00146868]
[1763947442741,2.56837779,86829.0,86828.0,0.00146868]
[1763947442940,2.56937779,86829.0,86828.0,0.00146868]
[1763947443351,2.33804,86829.0,86828.0,0.00146868]
[1763947443589,0.33804,86829.0,86828.0,0.00146868]
[1763947443784,2.33904,86829.0,86828.0,0.00146868]
[1763947443985,2.34004,86829.0,86828.0,0.00146868]
[1763947444825,2.33904,86829.0,86828.0,0.00146868]
[1763947445250,2.36133985,86829.0,86828.0,0.00146868]
[1763947445495,2.34004,86829.0,86828.0,0.00146868]
[1763947445994,2.18258549,86829.0,86828.0,0.00146868]
[1763947446957,2.18258549,86829.0,86828.0,0.01146868]
[1763947447366,0.002,86829.0,86828.0,0.05803868]
[1763947447771,0.002,86829.0,86828.0,0.02970868]
[1763947447975,0.01151662,86831.0,86828.0,0.00146868]
[1763947448182,0.01151662,86831.0,86828.0,0.00039445]
[1763947448402,0.323,86833.0,86828.0,0.00039445]
[1763947448596,0.33451635,86833.0,86828.0,0.00039445]
[1763947448806,0.33451662,86831.0,86828.0,0.00039445]
[1763947449210,0.323,86831.0,86828.0,0.00039445]
[1763947449410,0.33451662,86831.0,86828.0,0.00039445]
[1763947449757,0.323,86829.0,86828.0,0.00039445]
[1763947449975,2.3443347,86829.0,86828.0,0.00039445]
[1763947450582,2.5937243,86829.0,86828.0,0.00039445]
[1763947451421,2.5947243,86829.0,86828.0,0.00039445]
[1763947451627,2.5937243,86829.0,86828.0,0.00039445]
[1763947452036,2.5957243,86829.0,86828.0,0.00039445]
[1763947452242,2.68437567,86829.0,86828.0,0.00039445]
[1763947452445,2.69315089,86829.0,86828.0,0.00039445]
[1763947453071,2.69917722,86829.0,86828.0,0.00039445]
[1763947454791,2.69917722,86829.0,86810.0,0.0002]
[1763947454792,2.55338555,86811.0,86810.0,0.0002]
[1763947454934,2.57472025,86811.0,86810.0,0.00029067]
[1763947455136,2.3443347,86811.0,86810.0,0.00193393]
[1763947455336,2.3489547,86811.0,86810.0,0.00193393]
[1763947455964,2.3509547,86811.0,86810.0,0.00193393]
[1763947456407,0.3509547,86811.0,86810.0,0.00193393]
[1763947457219,0.3489547,86811.0,86810.0,0.00193393]
[1763947457394,0.3509547,86811.0,86810.0,0.00193393]
[1763947457594,0.0279547,86811.0,86810.0,0.00193393]
[1763947458731,0.0269547,86811.0,86810.0,0.01193393]
[1763947459111,0.0259547,86811.0,86810.0,0.00193393]
[1763947459318,0.0259547,86811.0,86810.0,0.01193393]
[1763947459859,0.3489547,86811.0,86810.0,0.00193393]
[1763947460053,2.3489547,86811.0,86810.0,0.00193393]
[1763947462052,2.35786318,86811.0,86810.0,0.00193393]
[1763947462531,2.38764127,86811.0,86810.0,0.00193393]
[1763947463352,2.37873279,86811.0,86810.0,0.00193393]
[1763947463784,2.35114599,86811.0,86810.0,0.00193393]
[1763947463986,2.3489547,86811.0,86810.0,0.00193393]
[1763947464576,2.57934025,86811.0,86810.0,0.00193393]
[1763947464777,2.61583553,86811.0,86810.0,0.00193393]
[1763947464990,2.61802682,86811.0,86810.0,0.00193393]
[1763947465298,2.58153154,86811.0,86810.0,0.00193393]
[1763947465935,2.35114599,86811.0,86810.0,0.00193393]
[1763947466075,2.58153154,86811.0,86810.0,0.00193393]
[1763947466292,2.35114599,86811.0,86810.0,0.00193393]
[1763947466691,2.35214599,86811.0,86810.0,0.00193393]
[1763947466890,2.58353154,86811.0,86810.0,0.00193393]
[1763947467091,2.58153154,86811.0,86810.0,0.00193393]
[1763947467392,2.57934025,86811.0,86810.0,0.00193393]
[1763947468602,2.3489547,86811.0,86810.0,0.00193393]
[1763947469045,2.57934025,86811.0,86810.0,0.00193393]